bitfinex-derivatives/quotes_BTCF0:USTF0_20241103
["timestamp","ask_amount","ask_price","bid_price","bid_amount"]
[1730644342936,0.0022124,67834.0,67831.0,0.07373]
[1730644343134,0.0022124,67834.0,67822.0,0.3608]
[1730644343135,0.0022124,67834.0,67826.0,0.073736]
[1730644343330,0.0022124,67834.0,67829.0,0.073733]
[1730644343534,0.0759404,67834.0,67829.0,0.073733]
[1730644343739,0.073728,67833.0,67830.0,0.21994356]
[1730644344640,0.073728,67833.0,67830.0,0.29367456]
[1730644344850,0.0052124,67834.0,67831.0,0.07373]
[1730644345135,0.0052124,67834.0,67833.0,0.073728]
[1730644345343,0.073712,67848.0,67833.0,0.073728]
[1730644345529,0.434509,67851.0,67834.0,0.073726]
[1730644345736,0.434509,67851.0,67833.0,0.22130388]
[1730644345944,0.073706,67855.0,67842.0,0.073718]
[1730644346255,0.3608,67856.0,67847.0,0.3608]
[1730644346539,0.3608,67866.0,67855.0,0.3608]
[1730644346738,0.3608,67872.0,67856.0,0.073703]
[1730644346941,0.073698,67861.0,67856.0,0.29389743]
[1730644347535,0.073693,67866.0,67856.0,0.29389743]
[1730644347737,0.073694,67865.0,67856.0,0.29389743]
[1730644347937,0.073694,67865.0,67861.0,0.073698]
[1730644348242,0.073696,67864.0,67861.0,0.073698]
[1730644348438,0.3608,67872.0,67856.0,0.001]
[1730644348741,0.073696,67863.0,67858.0,0.0737]
[1730644348943,0.073699,67861.0,67858.0,0.0737]
[1730644349148,0.073699,67861.0,67859.0,0.22104532]
[1730644350549,0.3608,67866.0,67859.0,0.22104532]
[1730644350744,0.007,67865.0,67861.0,0.001]
[1730644350938,0.073697,67862.0,67861.0,0.001]
[1730644351535,0.073708,67853.0,67850.0,0.073709]
[1730644351851,0.073712,67848.0,67847.0,0.3608]
[1730644352034,0.073712,67848.0,67836.0,0.13021109]
[1730644352035,0.07372,67841.0,67836.0,0.00221109]
[1730644352239,0.3608,67852.0,67839.0,0.073722]
[1730644352440,0.07372,67841.0,67839.0,0.073722]
[1730644353049,0.3608,67852.0,67836.0,0.00221109]
[1730644353350,0.3608,67852.0,67845.0,0.073715]
[1730644353351,0.073713,67848.0,67845.0,0.073715]
[1730644353646,0.4888,67858.0,67846.0,0.3608]
[1730644353856,0.073705,67855.0,67846.0,0.58314693]
[1730644354151,0.4888,67858.0,67847.0,0.001]
[1730644354152,0.00152,67858.0,67847.0,0.001]
[1730644354452,0.073701,67858.0,67847.0,0.22334693]
[1730644354654,0.008,67862.0,67847.0,0.22334693]
[1730644354655,0.081698,67862.0,67857.0,0.073702]
[1730644354950,0.073698,67861.0,67857.0,0.073702]
[1730644355252,0.13021145,67865.0,67851.0,0.073709]
[1730644355253,0.008,67852.0,67851.0,0.073709]
[1730644355552,0.00221145,67865.0,67863.0,0.073695]
[1730644355744,0.00221145,67865.0,67864.0,0.073695]
[1730644355942,0.00221145,67865.0,67860.0,0.3608]
[1730644356141,0.3608,67862.0,67847.0,0.128]
[1730644356446,0.073701,67858.0,67853.0,0.29393871]
[1730644356953,0.073701,67858.0,67857.0,0.001]
[1730644357253,0.073701,67858.0,67857.0,0.002]
[1730644357552,0.073701,67858.0,67857.0,0.001]
[1730644357950,0.3608,67862.0,67848.0,1.5]
[1730644357951,0.073707,67854.0,67853.0,0.001]
[1730644358453,0.00221145,67865.0,67853.0,0.2211596]
[1730644358751,0.00221145,67865.0,67864.0,0.073695]
[1730644359145,0.00221145,67865.0,67864.0,0.2938546]
[1730644361650,0.073692,67867.0,67860.0,0.3608]
[1730644361947,0.073692,67867.0,67863.0,0.073695]
[1730644362947,0.073692,67867.0,67860.0,0.3608]
[1730644362948,0.07369,67868.0,67867.0,0.073691]
[1730644363156,0.3608,67869.0,67860.0,0.3608]
[1730644363457,0.073694,67865.0,67861.0,0.22035097]
[1730644363641,0.073694,67865.0,67860.0,0.435258]
[1730644363955,0.073697,67863.0,67861.0,0.22165413]
[1730644364157,0.073697,67862.0,67861.0,0.22165413]
[1730644364342,0.3608,67869.0,67852.0,0.073707]
[1730644364343,0.073702,67857.0,67852.0,0.073707]
[1730644364540,0.3608,67863.0,67853.0,0.073706]
[1730644364743,0.073703,67857.0,67853.0,0.29514725]
[1730644364950,0.073703,67857.0,67853.0,0.073706]
[1730644365153,0.3608,67863.0,67849.0,1.50076]
[1730644365357,0.3608,67863.0,67849.0,1.57371]
[1730644365650,0.3608,67863.0,67850.0,0.21967608]
[1730644365651,0.073706,67854.0,67850.0,0.21967608]
[1730644366044,0.073686,67872.0,67850.0,0.21967608]
[1730644366045,0.3608,67879.0,67852.0,0.3608]
[1730644366254,0.3608,67879.0,67851.0,0.44212]
[1730644366255,0.36301079,67886.0,67875.0,0.073682]
[1730644366559,0.00221079,67886.0,67875.0,0.073682]
[1730644366744,0.07368,67878.0,67875.0,0.073682]
[1730644366944,0.07368,67878.0,67876.0,0.073682]
[1730644367147,0.00221079,67886.0,67878.0,0.073679]
[1730644367148,0.073675,67883.0,67878.0,0.073679]
[1730644367461,0.00221079,67886.0,67877.0,0.22249055]
[1730644367754,0.07588279,67886.0,67875.0,0.002]
[1730644368057,0.073672,67885.0,67876.0,0.22133159]
[1730644368245,0.073672,67885.0,67882.0,0.073675]
[1730644368649,0.00221079,67886.0,67883.0,0.22059062]
[1730644368845,0.00221079,67886.0,67885.0,0.073672]
[1730644369046,0.00221079,67886.0,67885.0,0.434472]
[1730644369244,0.4608,67900.0,67885.0,0.65506262]
[1730644369245,0.073658,67898.0,67885.0,0.65506262]
[1730644369441,0.073658,67898.0,67894.0,0.073662]
[1730644369748,0.073663,67893.0,67891.0,0.073665]
[1730644370458,0.434463,67893.0,67891.0,0.073665]
[1730644370656,0.3608,67893.0,67880.0,0.3608]
[1730644371155,0.534456,67900.0,67897.0,0.073658]
[1730644371559,0.534456,67900.0,67889.0,0.3608]
[1730644371560,0.4608,67900.0,67899.0,0.073657]
[1730644372057,0.534456,67900.0,67899.0,0.073657]
[1730644372360,0.4608,67900.0,67894.0,0.073661]
[1730644372547,0.4608,67900.0,67891.0,0.002]
[1730644372749,0.4608,67900.0,67891.0,0.075665]
[1730644372944,0.4608,67900.0,67891.0,0.002]
[1730644373149,0.073661,67896.0,67893.0,0.073663]
[1730644373357,0.073662,67894.0,67891.0,0.001]
[1730644373857,0.073662,67894.0,67890.0,0.073666]
[1730644374056,0.073662,67894.0,67891.0,0.001]
[1730644374360,0.073662,67894.0,67893.0,0.001]
[1730644374656,0.434462,67894.0,67893.0,0.001]
[1730644374862,0.434462,67894.0,67891.0,0.22048308]
[1730644375058,0.073664,67892.0,67891.0,0.22148308]
[1730644375249,0.073664,67892.0,67891.0,0.002]
[1730644376860,0.073664,67892.0,67891.0,0.001]
[1730644377763,0.073664,67892.0,67891.0,0.002]
[1730644378451,0.073664,67892.0,67891.0,0.00086082]
[1730644378857,0.073664,67892.0,67891.0,0.00025305]
[1730644379661,0.3608,67894.0,67891.0,0.22071695]
[1730644379865,0.073664,67892.0,67891.0,0.22071695]
[1730644380053,0.073664,67892.0,67891.0,0.00025305]
[1730644380762,0.3608,67894.0,67893.0,0.073663]
[1730644381057,0.3608,67894.0,67891.0,0.22161463]
[1730644381058,0.073664,67892.0,67891.0,0.002]
[1730644381563,0.074664,67892.0,67891.0,0.002]
[1730644382253,0.074664,67892.0,67891.0,0.001]
[1730644382455,0.076664,67892.0,67891.0,0.002]
[1730644382964,0.076664,67892.0,67891.0,0.075665]
[1730644383152,0.003,67892.0,67891.0,0.075665]
[1730644383558,0.003,67892.0,67891.0,0.29517789]
[1730644386266,0.003,67892.0,67891.0,0.65597789]
[1730644386465,0.003,67892.0,67891.0,1.09785789]
[1730644386861,0.003,67892.0,67891.0,2.59785789]
[1730644387964,0.003,67892.0,67891.0,2.15597789]
[1730644389061,0.1,67900.0,67891.0,2.52419289]
[1730644389269,0.1,67900.0,67899.0,0.073657]
[1730644389772,0.1,67900.0,67899.0,0.29383082]
[1730644390766,0.101,67900.0,67899.0,0.29383082]
[1730644391379,0.101,67900.0,67899.0,0.29483082]
[1730644392077,0.101,67900.0,67899.0,0.29583082]
[1730644393479,0.101,67900.0,67899.0,0.73767082]
[1730644393671,0.101,67900.0,67899.0,0.29583082]
[1730644403983,0.101,67900.0,67899.0,0.73767082]
[1730644404191,0.36224,67917.0,67899.0,0.73767082]
[1730644404192,0.3608,67917.0,67900.0,0.073655]
[1730644404494,0.3608,67917.0,67911.0,0.3608]
[1730644404680,0.3608,67917.0,67916.0,0.073638]
[1730644404984,0.3608,67917.0,67916.0,0.29381554]
[1730644406093,0.3608,67917.0,67916.0,0.29481554]
[1730644407687,0.3608,67917.0,67916.0,0.29381554]
[1730644407892,0.3608,67917.0,67916.0,0.29481554]
[1730644408189,0.0648,67934.0,67922.0,0.073632]
[1730644408190,0.073626,67928.0,67922.0,0.073632]
[1730644408491,0.073624,67929.0,67923.0,0.21938781]
[1730644409190,0.3608,67931.0,67925.0,0.073629]
[1730644409489,0.3608,67931.0,67925.0,0.29544846]
[1730644409692,0.3608,67931.0,67925.0,0.73712846]
[1730644409876,0.3608,67931.0,67930.0,0.073623]
[1730644410077,0.3608,67944.0,67926.0,0.3949]
[1730644410283,0.3608,67944.0,67942.0,0.07361]
[1730644410480,0.3608,67944.0,67932.0,0.3608]
[1730644410481,0.0327,67947.0,67939.0,0.3608]
[1730644410680,0.0327,67947.0,67943.0,0.29504841]
[1730644410987,0.0327,67947.0,67943.0,0.073609]
[1730644411193,0.36448837,67958.0,67943.0,0.073609]
[1730644411194,0.36300837,67958.0,67945.0,0.3608]
[1730644411492,0.3608,67958.0,67956.0,0.073594]
[1730644411698,0.3608,67958.0,67957.0,0.073594]
[1730644411881,0.3608,67958.0,67957.0,0.29391859]
[1730644412081,0.3608,67958.0,67957.0,0.515034]
[1730644412393,0.3608,67958.0,67957.0,0.73535859]
[1730644412785,0.073575,67975.0,67964.0,0.073585]
[1730644413084,0.3608,67977.0,67966.0,0.3608]
[1730644413085,0.073582,67968.0,67966.0,0.3608]
[1730644413285,0.073584,67966.0,67965.0,0.22008476]
[1730644413587,0.073592,67959.0,67958.0,0.22008476]
[1730644413776,0.3608,67965.0,67953.0,1.5]
[1730644413981,0.3608,67965.0,67958.0,0.22176095]
[1730644414387,0.434386,67965.0,67957.0,0.3618]
[1730644414596,0.073587,67964.0,67958.0,0.21972414]
[1730644414900,0.3608,67965.0,67958.0,0.22072414]
[1730644415085,0.07358,67970.0,67961.0,0.3608]
[1730644415285,0.07358,67970.0,67958.0,0.22072414]
[1730644415286,0.073585,67965.0,67958.0,0.22072414]
[1730644415500,0.3608,67971.0,67962.0,0.21972414]
[1730644415501,0.073586,67964.0,67962.0,0.21972414]
[1730644415791,0.07359,67961.0,67959.0,0.22050678]
[1730644416099,0.073584,67967.0,67962.0,0.22050678]
[1730644416290,0.073584,67967.0,67960.0,0.3608]
[1730644416485,0.073585,67965.0,67961.0,0.22050678]
[1730644416687,0.3608,67964.0,67957.0,0.001]
[1730644416899,0.3608,67964.0,67916.0,0.434438]
[1730644416900,0.073621,67932.0,67916.0,0.434438]
[1730644417085,0.073637,67917.0,67916.0,0.3608]
[1730644417489,0.3608,67933.0,67916.0,0.58132886]
[1730644418184,0.073621,67932.0,67931.0,0.001]
[1730644418383,0.434421,67932.0,67931.0,0.001]
[1730644419687,0.434421,67932.0,67917.0,0.073636]
[1730644419688,0.073633,67921.0,67917.0,0.073636]
[1730644419889,0.073633,67921.0,67918.0,0.434436]
[1730644420089,0.3608,67932.0,67918.0,0.58169193]
[1730644420291,0.3608,67932.0,67918.0,0.3608]
[1730644420604,0.075621,67932.0,67931.0,0.002]
[1730644420993,0.074621,67932.0,67931.0,0.001]
[1730644421503,0.073625,67929.0,67924.0,0.3608]
[1730644421796,0.073625,67929.0,67925.0,0.2200895]
[1730644423897,0.07362,67933.0,67925.0,0.2200895]
[1730644424200,0.3608,67935.0,67928.0,0.073625]
[1730644424503,0.3608,67935.0,67929.0,0.22152232]
[1730644424900,0.00220927,67940.0,67931.0,0.073622]
[1730644425112,0.3608,67946.0,67936.0,0.3608]
[1730644425295,0.3608,67946.0,67937.0,1.5]
[1730644425296,0.073614,67939.0,67937.0,1.5]
[1730644425496,0.073614,67939.0,67937.0,1.72152232]
[1730644425696,0.3608,67953.0,67938.0,0.073614]
[1730644425901,0.073606,67946.0,67942.0,0.3608]
[1730644426106,0.3608,67953.0,67942.0,0.3608]
[1730644426409,0.3608,67961.0,67955.0,0.073596]
[1730644426600,0.3608,67961.0,67956.0,0.073595]
[1730644426799,0.3608,67961.0,67956.0,0.29464328]
[1730644427000,0.3608,67961.0,67956.0,0.073595]
[1730644427401,0.43439,67961.0,67957.0,0.22104828]
[1730644428198,0.073591,67960.0,67957.0,0.22104828]
[1730644429298,0.073591,67960.0,67957.0,0.22204828]
[1730644429699,0.073591,67960.0,67957.0,0.22304828]
[1730644430109,0.001,67960.0,67958.0,0.3608]
[1730644430303,0.001,67960.0,67959.0,0.073592]
[1730644430504,0.001,67960.0,67959.0,0.29329649]
[1730644431209,0.001,67960.0,67959.0,0.21970449]
[1730644432002,0.001,67960.0,67959.0,0.29329649]
[1730644432603,0.073586,67965.0,67960.0,0.07359]
[1730644432998,0.073586,67965.0,67961.0,0.21966202]
[1730644433603,0.3608,67973.0,67961.0,0.21966202]
[1730644433803,0.073585,67965.0,67961.0,0.21966202]
[1730644433999,0.073585,67965.0,67959.0,0.2215098]
[1730644434204,0.3608,67973.0,67958.0,0.434392]
[1730644434205,0.073587,67964.0,67958.0,0.434392]
[1730644434512,0.073587,67964.0,67959.0,0.2215098]
[1730644434710,0.073582,67968.0,67959.0,0.2215098]
[1730644434917,0.3608,67973.0,67964.0,0.3608]
[1730644435110,0.073585,67965.0,67961.0,0.073589]
[1730644435409,0.073585,67965.0,67964.0,0.3608]
[1730644435798,0.074585,67965.0,67964.0,0.3608]
[1730644436003,0.001,67965.0,67958.0,0.3608]
[1730644436209,0.073589,67962.0,67958.0,0.3608]
[1730644436415,0.073587,67963.0,67962.0,0.2193602]
[1730644436604,0.073587,67963.0,67959.0,0.2193602]
[1730644436803,0.073592,67959.0,67947.0,0.073605]
[1730644437107,0.3608,67959.0,67950.0,0.3608]
[1730644437313,0.073595,67956.0,67952.0,0.073599]
[1730644437512,0.073595,67956.0,67950.0,0.58040622]
[1730644437513,0.3608,67959.0,67950.0,0.3608]
[1730644437815,0.3608,67959.0,67953.0,0.22088831]
[1730644438114,0.3608,67959.0,67950.0,0.434401]
[1730644438115,0.073596,67956.0,67950.0,0.434401]
[1730644438313,0.073598,67953.0,67950.0,0.3608]
[1730644438517,0.073598,67953.0,67951.0,0.22088831]
[1730644438906,0.073593,67958.0,67951.0,0.29448831]
[1730644439108,0.3608,67965.0,67961.0,0.07359]
[1730644439306,0.36272001,67973.0,67960.0,0.07359]
[1730644439512,0.3608,67973.0,67962.0,0.22111576]
[1730644439816,0.3608,67973.0,67950.0,0.003]
[1730644439817,0.3608,67964.0,67961.0,0.22174955]
[1730644440021,0.3608,67964.0,67951.0,0.003]
[1730644440311,0.073588,67963.0,67951.0,0.65614855]
[1730644440520,0.3608,67964.0,67951.0,0.3608]
[1730644440714,0.3608,67964.0,67947.0,0.073604]
[1730644440715,0.073599,67952.0,67947.0,0.073604]
[1730644440917,0.073599,67952.0,67948.0,0.073603]
[1730644441109,0.073599,67952.0,67947.0,0.21975392]
[1730644441307,0.073595,67956.0,67951.0,0.3608]
[1730644441609,0.073601,67951.0,67948.0,0.22203735]
[1730644442111,0.073601,67951.0,67945.0,1.64833418]
[1730644442112,0.3608,67962.0,67950.0,0.65643835]
[1730644442319,0.073593,67958.0,67953.0,0.073597]
[1730644442614,0.073593,67958.0,67945.0,1.64833418]
[1730644442615,0.073602,67950.0,67948.0,0.29564035]
[1730644442811,0.073602,67950.0,67948.0,0.073603]
[1730644443013,0.073602,67950.0,67949.0,0.21953271]
[1730644443405,0.073606,67946.0,67945.0,1.86300719]
[1730644443914,0.073606,67946.0,67945.0,2.08278768]
[1730644444112,0.0337,67956.0,67946.0,0.073605]
[1730644444413,0.0337,67956.0,67945.0,2.08278768]
[1730644444414,0.0736,67951.0,67947.0,0.21978049]
[1730644444601,0.0736,67951.0,67949.0,0.073602]
[1730644445307,0.434394,67957.0,67950.0,0.22020095]
[1730644445711,0.3608,67957.0,67947.0,0.22138854]
[1730644446006,0.434395,67957.0,67947.0,0.073605]
[1730644446208,0.3608,67957.0,67956.0,0.073595]
[1730644446516,0.0318,67969.0,67963.0,0.073587]
[1730644447516,0.0318,67969.0,67958.0,0.073592]
[1730644447716,0.3608,67968.0,67957.0,0.3608]
[1730644447920,0.073596,67956.0,67948.0,0.12288]
[1730644448109,0.073596,67956.0,67954.0,0.3608]
[1730644448305,0.073596,67955.0,67952.0,0.2220003]
[1730644448510,0.073604,67948.0,67945.0,1.50220719]
[1730644448713,0.073604,67948.0,67945.0,1.57581419]
[1730644448915,0.073604,67948.0,67947.0,0.22108352]
[1730644449116,0.073604,67948.0,67946.0,0.22108352]
[1730644449317,0.3608,67954.0,67945.0,1.50220719]
[1730644449519,0.073606,67946.0,67945.0,1.49930719]
[1730644449812,0.073606,67946.0,67945.0,1.50630719]
[1730644450420,0.073606,67946.0,67945.0,0.007]
[1730644451212,0.073606,67946.0,67945.0,0.008]
[1730644451917,0.073606,67946.0,67945.0,0.001]
[1730644453022,0.034,67947.0,67940.0,0.073612]
[1730644453224,0.073606,67946.0,67945.0,0.002]
[1730644454624,0.434406,67946.0,67945.0,0.002]
[1730644455014,0.875926,67946.0,67945.0,0.002]
[1730644455318,0.073615,67937.0,67936.0,1.5]
[1730644455528,0.073622,67931.0,67930.0,0.3608]
[1730644456021,0.073622,67931.0,67930.0,1.8608]
[1730644456521,0.3608,67946.0,67931.0,0.073622]
[1730644456730,0.3608,67946.0,67937.0,0.3608]
[1730644457023,0.073609,67943.0,67942.0,0.07361]
[1730644457719,0.3608,67946.0,67937.0,0.434415]
[1730644457720,0.073611,67942.0,67937.0,0.434415]
[1730644458115,0.073611,67942.0,67938.0,0.073614]
[1730644458523,0.3618,67946.0,67942.0,0.07361]
[1730644458719,0.3618,67946.0,67937.0,0.3608]
[1730644459023,0.073608,67944.0,67942.0,0.07361]
[1730644459220,0.001,67946.0,67938.0,0.3608]
[1730644459527,0.3608,67955.0,67954.0,0.073597]
[1730644460331,0.073585,67965.0,67954.0,0.22119304]
[1730644460528,0.073585,67965.0,67959.0,0.073592]
[1730644460825,0.073588,67963.0,67959.0,0.073592]
[1730644461027,0.002,67955.0,67954.0,0.074597]
[1730644461622,0.002,67955.0,67954.0,1.79531835]
[1730644461821,0.36300841,67970.0,67954.0,2.23679835]
[1730644462015,0.00220841,67970.0,67966.0,0.3608]
[1730644462424,0.00220841,67970.0,67967.0,0.22033754]
[1730644462612,0.00220841,67970.0,67969.0,0.073581]
[1730644462814,0.3608,67985.0,67969.0,0.04397973]
[1730644463028,0.073565,67984.0,67976.0,0.073573]
[1730644463227,0.073565,67984.0,67974.0,0.04397048]
[1730644463415,0.073565,67984.0,67975.0,0.04397048]
[1730644463624,0.07356,67989.0,67977.0,0.22208378]
[1730644463918,0.073554,67994.0,67986.0,0.3608]
[1730644464120,0.073554,67994.0,67987.0,0.073561]
[1730644464321,0.073552,67996.0,67988.0,0.07356]
[1730644464517,0.073552,67996.0,67987.0,0.2212359]
[1730644464820,0.073552,67996.0,67989.0,0.073559]
[1730644465226,0.3608,67999.0,67993.0,0.3608]
[1730644465624,0.3608,67999.0,67994.0,0.29329286]
[1730644465824,0.001,67996.0,67995.0,0.073552]
[1730644466031,0.3608,67999.0,67994.0,0.21973986]
[1730644466219,0.073524,68022.0,68013.0,0.073533]
[1730644466417,0.3608,68032.0,68019.0,0.3608]
[1730644466418,0.38384671,68032.0,68019.0,0.3608]
[1730644466620,0.073525,68021.0,68019.0,0.3608]
[1730644466829,0.38384671,68032.0,68020.0,0.22125277]
[1730644467033,0.073518,68028.0,68020.0,0.22125277]
[1730644467517,0.3608,68043.0,68025.0,0.3608]
[1730644467518,0.073513,68033.0,68025.0,0.3608]
[1730644467718,0.073509,68036.0,68025.0,0.3608]
[1730644467921,0.3608,68037.0,68030.0,0.073514]
[1730644468224,0.3608,68037.0,68031.0,0.21924932]
[1730644469722,0.3608,68037.0,68026.0,0.12284]
[1730644470018,0.073512,68034.0,68031.0,0.001]
[1730644470226,0.073512,68034.0,68031.0,0.002]
[1730644470524,0.3608,68043.0,68031.0,0.002]
[1730644470725,0.7216,68032.0,68008.0,0.3608]
[1730644471035,0.07353,68017.0,68016.0,0.3608]
[1730644471333,0.073525,68021.0,68016.0,0.3608]
[1730644471727,0.073525,68021.0,68016.0,0.43433]
[1730644471924,0.07352,68025.0,68016.0,0.43433]
[1730644472127,0.07352,68025.0,68020.0,0.073525]
[1730644472831,0.073529,68017.0,68016.0,0.3618]
[1730644473332,0.434329,68017.0,68016.0,0.001]
[1730644473735,0.3608,68017.0,68016.0,0.001]
[1730644473930,0.434329,68017.0,68016.0,0.001]
[1730644474925,0.073529,68017.0,68016.0,0.001]
[1730644475123,0.074529,68017.0,68016.0,0.001]
[1730644475327,0.075529,68017.0,68016.0,0.002]
[1730644476524,0.002,68017.0,68016.0,0.002]
[1730644476843,0.002,68017.0,68016.0,0.07553]
[1730644477223,0.002,68017.0,68016.0,0.002]
[1730644477423,0.075529,68017.0,68016.0,0.002]
[1730644478731,0.002,68017.0,68016.0,0.002]
[1730644479035,0.002,68017.0,68016.0,0.07553]
[1730644479241,0.075529,68017.0,68016.0,0.002]
[1730644480244,0.002,68017.0,68016.0,0.07553]
[1730644481038,0.002,68017.0,68016.0,0.29658232]
[1730644481232,0.002,68017.0,68016.0,0.65738232]
[1730644482345,0.002,68017.0,68016.0,2.15738232]
[1730644483541,0.002,68017.0,68016.0,2.19278232]
[1730644483949,0.002,68017.0,68016.0,0.69278232]
[1730644484236,0.002,68017.0,68016.0,0.58385232]
[1730644484437,0.002,68017.0,68016.0,0.002]
[1730644484646,0.075529,68017.0,68016.0,0.002]
[1730644484843,0.436329,68017.0,68016.0,0.002]
[1730644485642,0.075529,68017.0,68016.0,0.002]
[1730644488333,0.075529,68017.0,68016.0,0.07553]
[1730644488534,0.075529,68017.0,68016.0,0.002]
[1730644489639,0.073537,68010.0,68008.0,0.073538]
[1730644489835,0.073538,68009.0,68008.0,0.073538]
[1730644490346,0.073538,68009.0,68006.0,0.3608]
[1730644490347,0.073533,68014.0,68013.0,0.073532]
[1730644491638,0.073533,68014.0,68013.0,0.074532]
[1730644491837,0.43432,68025.0,68013.0,0.001]
[1730644492037,0.073526,68020.0,68016.0,0.073529]
[1730644492342,0.073526,68020.0,68013.0,0.3628]
[1730644492343,0.3608,68025.0,68014.0,0.22125334]
[1730644492534,0.3608,68025.0,68019.0,0.434327]
[1730644492732,0.3608,68025.0,68019.0,0.073527]
[1730644493145,0.073525,68021.0,68019.0,0.073527]
[1730644493448,0.073528,68019.0,68015.0,0.073531]
[1730644493637,0.073521,68024.0,68015.0,0.073531]
[1730644493941,0.073527,68020.0,68016.0,1.71967266]
[1730644494141,0.074527,68020.0,68016.0,1.79420266]
[1730644494346,0.074527,68020.0,68019.0,0.001]
[1730644495337,0.073527,68020.0,68019.0,0.001]
[1730644495951,0.074527,68020.0,68019.0,0.001]
[1730644496156,0.075527,68020.0,68019.0,0.001]
[1730644496843,0.075527,68020.0,68019.0,0.002]
[1730644497349,0.075527,68020.0,68019.0,0.075527]
[1730644499041,0.075527,68020.0,68019.0,0.002]
[1730644499552,0.13158886,68020.0,68019.0,0.002]
[1730644500144,0.13158886,68020.0,68019.0,0.075527]
[1730644500453,0.05806186,68020.0,68019.0,0.075527]
[1730644500639,0.13158786,68020.0,68019.0,0.002]
[1730644500846,0.13170686,68020.0,68019.0,0.002]
[1730644502149,0.19641311,68020.0,68019.0,0.002]
[1730644502762,0.13170686,68020.0,68019.0,0.002]
[1730644503347,0.073535,68011.0,68010.0,1.5]
[1730644503558,0.073539,68008.0,68007.0,0.07354]
[1730644504562,0.435335,68011.0,68010.0,0.001]
[1730644504747,1.21616172,68011.0,67996.0,0.00012292]
[1730644504946,0.073547,68001.0,68000.0,0.073547]
[1730644505762,0.3608,68005.0,67997.0,1.57355]
[1730644505763,0.073547,68000.0,67997.0,1.57355]
[1730644505956,0.073547,68000.0,67999.0,0.07575376]
[1730644506260,0.073547,68000.0,67999.0,0.00220576]
[1730644506457,0.3608,68005.0,67997.0,1.49950576]
[1730644506458,0.073549,67998.0,67997.0,1.49950576]
[1730644506647,0.434349,67998.0,67997.0,1.49950576]
[1730644507459,0.434349,67998.0,67997.0,1.57305676]
[1730644507846,0.434349,67998.0,67997.0,1.49950576]
[1730644508063,0.434349,67998.0,67984.0,0.10246665]
[1730644508064,1.102,67998.0,67984.0,0.10246665]
[1730644508252,1.102,67998.0,67968.0,0.07323903]
[1730644508253,0.073565,67984.0,67971.0,0.073579]
[1730644508454,0.073565,67984.0,67970.0,1.5]
[1730644508662,0.073579,67971.0,67970.0,1.5]
[1730644508959,0.3608,67974.0,67967.0,0.02271609]
[1730644508960,0.073582,67968.0,67967.0,0.22199612]
[1730644509145,0.3608,67974.0,67964.0,0.09870285]
[1730644509146,0.073585,67965.0,67964.0,0.09870285]
[1730644509350,0.073585,67965.0,67964.0,0.17228885]
[1730644509545,0.073585,67965.0,67964.0,1.67228885]
[1730644509852,0.073585,67965.0,67964.0,1.59870285]
[1730644510164,0.434385,67965.0,67964.0,1.59870285]
[1730644510355,0.436385,67965.0,67964.0,1.59970285]
[1730644511055,0.436385,67965.0,67964.0,0.09970285]
[1730644511245,0.440385,67965.0,67964.0,0.10070285]
[1730644511743,0.440385,67965.0,67964.0,0.09970285]
[1730644511954,0.438385,67965.0,67964.0,0.09970285]
[1730644512161,0.440385,67965.0,67964.0,0.10070285]
[1730644512755,0.438385,67965.0,67964.0,0.09970285]
[1730644513050,0.079585,67965.0,67964.0,0.10070285]
[1730644513552,0.077585,67965.0,67964.0,0.09970285]
[1730644513753,0.079585,67965.0,67964.0,0.10070285]
[1730644513951,0.079585,67965.0,67964.0,0.002]
[1730644514148,0.079585,67965.0,67964.0,0.001]
[1730644514149,0.078585,67965.0,67964.0,0.001]
[1730644514657,0.075585,67965.0,67964.0,0.001]
[1730644514844,0.079585,67965.0,67964.0,0.002]
[1730644515048,0.077585,67965.0,67964.0,0.001]
[1730644515252,0.440385,67965.0,67964.0,0.002]
[1730644515662,0.3668,67965.0,67956.0,1.501407]
[1730644515862,0.006,67965.0,67964.0,0.073586]
[1730644516060,0.006,67965.0,67964.0,0.29524112]
[1730644516360,0.005,67965.0,67964.0,0.075586]
[1730644516556,0.005,67965.0,67964.0,0.29624112]
[1730644516952,0.002,67965.0,67964.0,0.29624112]
[1730644517163,0.005,67965.0,67964.0,0.29624112]
[1730644518167,0.002,67965.0,67964.0,0.29824112]
[1730644518362,0.07358,67970.0,67964.0,0.22365512]
[1730644518564,0.003,67965.0,67964.0,0.003]
[1730644519060,0.076585,67965.0,67964.0,0.003]
[1730644519260,0.001,67965.0,67964.0,0.076586]
[1730644519649,0.001,67965.0,67964.0,0.075586]
[1730644520057,0.004,67965.0,67964.0,0.075586]
[1730644520253,0.007,67965.0,67956.0,1.501407]
[1730644520460,0.073592,67960.0,67956.0,1.501407]
[1730644520754,0.073592,67960.0,67957.0,0.22055268]
[1730644521362,0.073592,67960.0,67957.0,0.29414568]
[1730644521566,0.073592,67960.0,67958.0,0.073593]
[1730644521867,0.073587,67964.0,67957.0,0.22055268]
[1730644522072,0.005,67965.0,67961.0,0.073589]
[1730644522267,0.005,67965.0,67956.0,1.575001]
[1730644522470,0.002,67960.0,67957.0,0.21973705]
[1730644522769,0.002,67960.0,67956.0,1.575001]
[1730644523275,0.003,67965.0,67956.0,1.584001]
[1730644523478,0.073591,67960.0,67956.0,1.584001]
[1730644523768,0.073591,67960.0,67956.0,1.575001]
[1730644524375,0.073591,67960.0,67957.0,0.073593]